bitfinex/quotes_ETHUSD_20240928
["timestamp","ask_amount","ask_price","bid_price","bid_amount"]
[1727553655871,1.4106192,2683.7,2683.3,3.72665]
[1727553656087,1.02799192,2683.6,2683.4,0.053726]
[1727553658774,4.75433192,2683.6,2683.4,0.053726]
[1727553659186,4.75433192,2683.6,2683.1,3.72693]
[1727553659389,4.75433192,2683.6,2683.2,3.72688]
[1727553659703,4.75433192,2683.6,2683.2,3.780606]
[1727553660464,1.02799192,2683.6,2683.2,3.780606]
[1727553660703,0.8063,2683.6,2683.2,3.780606]
[1727553666104,0.8063,2683.6,2683.3,3.72674]
[1727553666295,0.8063,2683.6,2683.4,0.05388696]
[1727553668087,0.38994796,2683.7,2683.4,3.78048696]
[1727553668272,0.38994796,2683.7,2683.5,3.72646]
[1727553668781,0.38994796,2683.7,2683.6,0.05394626]
[1727553671784,0.38994796,2683.7,2683.4,3.72661]
[1727553671978,0.38994796,2683.7,2683.6,0.05392085]
[1727553672483,0.38994796,2683.7,2683.4,3.72661]
[1727553672788,0.38994796,2683.7,2683.5,0.05392085]
[1727553681739,4.11614796,2683.7,2683.3,0.7921]
[1727553681895,4.11614796,2683.7,2683.6,0.05368362]
[1727553682090,5.46000656,2683.7,2683.2,3.72677]
[1727553682292,5.46000656,2683.7,2683.3,0.05368362]
[1727553682537,5.46000656,2683.7,2683.3,3.72673]
[1727553682846,5.46000656,2683.7,2683.4,0.05368362]
[1727553683407,0.82477129,2683.6,2683.4,0.05368362]
[1727553683675,5.46000656,2683.7,2683.4,0.05368362]
[1727553683817,5.46000656,2683.7,2683.2,3.72677]
[1727553684020,5.46000656,2683.7,2683.5,0.05372598]
[1727553684223,5.46000656,2683.7,2683.2,3.72677]
[1727553684740,5.46000656,2683.7,2683.3,0.05372598]
[1727553685331,5.46000656,2683.7,2683.4,0.05372598]
[1727553685535,5.46000656,2683.7,2683.2,3.72677]
[1727553685733,5.46000656,2683.7,2683.5,0.05372598]
[1727553685945,5.46000656,2683.7,2683.2,3.72677]
[1727553685946,0.82477129,2683.6,2683.2,3.72677]
[1727553686226,5.46000656,2683.7,2683.6,0.05372598]
[1727553686434,4.11614796,2683.7,2683.2,3.72677]
[1727553686632,4.11614796,2683.7,2683.6,0.05372598]
[1727553686798,5.61575936,2683.7,2683.2,3.72677]
[1727553686999,5.61575936,2683.7,2683.6,0.05372598]
[1727553687200,5.61575936,2683.7,2683.2,3.72677]
[1727553687430,5.61575936,2683.7,2683.6,0.05372598]
[1727553687630,5.61575936,2683.7,2683.2,3.72677]
[1727553687833,5.61575936,2683.7,2683.6,0.05372598]
[1727553688127,5.61575936,2683.7,2683.2,3.72677]
[1727553688529,5.61575936,2683.7,2683.3,0.05372598]
[1727553688951,5.61575936,2683.7,2683.2,7.45359]
[1727553689154,5.61575936,2683.7,2683.4,0.05372598]
[1727553689460,5.61575936,2683.7,2683.2,3.72677]
[1727553689641,5.61575936,2683.7,2683.5,0.05372598]
[1727553689840,0.84050426,2683.6,2683.5,0.05372598]
[1727553690052,0.84050426,2683.6,2683.2,3.72677]
[1727553690257,5.61575936,2683.7,2683.5,0.05372598]
[1727553690258,4.11614796,2683.7,2683.5,0.05372598]
[1727553690457,4.11614796,2683.7,2683.2,7.45359]
[1727553690643,4.11614796,2683.7,2683.6,0.05372598]
[1727553691356,4.11614796,2683.7,2683.2,7.45359]
[1727553691540,4.11614796,2683.7,2683.6,0.05372598]
[1727553691728,5.61591705,2683.7,2683.2,7.45359]
[1727553691924,4.11614796,2683.7,2683.3,0.05372598]
[1727553692130,4.11614796,2683.7,2683.2,7.45359]
[1727553692468,4.11614796,2683.7,2683.3,0.05372598]
[1727553692842,6.07267266,2683.7,2683.2,7.45359]
[1727553693090,6.07267266,2683.7,2683.4,0.05372598]
[1727553693242,6.07267266,2683.7,2683.2,7.45359]
[1727553693441,6.07267266,2683.7,2683.5,0.05372598]
[1727553693696,0.69058727,2683.6,2683.2,7.45359]
[1727553693876,6.07267266,2683.7,2683.2,7.45359]
[1727553694081,6.07267266,2683.7,2683.2,3.72677]
[1727553694256,2.7501247,2683.6,2683.0,3.72703]
[1727553694458,7.31908376,2683.5,2683.0,3.72703]
[1727553694633,0.7936,2683.4,2683.0,3.72703]
[1727553695181,1.18357291,2683.4,2683.0,3.72703]
[1727553697171,4.91020291,2683.4,2682.9,3.7273]
[1727553701290,3.72675,2683.3,2682.8,4.50886]
[1727553701456,0.7911,2683.1,2682.7,3.72758]
[1727553701657,4.51821,2683.1,2682.6,4.49332]
[1727553702092,4.51821,2683.1,2682.7,0.05053484]
[1727553702296,5.69413127,2683.1,2682.7,0.05053484]
[1727553705752,1.96702127,2683.1,2682.7,3.77809484]
[1727553706259,0.7911,2683.1,2682.7,3.77809484]
[1727553709788,0.7911,2683.1,2682.7,7.50560484]
[1727553710517,1.18108808,2683.1,2682.7,7.50560484]
[1727553712075,1.18108808,2683.1,2682.7,3.77804484]
[1727553712275,1.18108808,2683.1,2682.7,7.50555484]
[1727553714330,1.18108808,2683.1,2682.7,3.77804484]
[1727553714491,1.18108808,2683.1,2682.7,3.77802484]
[1727553714897,1.18108808,2683.1,2682.7,7.50551484]
[1727553715106,1.18108808,2683.1,2682.7,3.77802484]
[1727553716386,1.18108808,2683.1,2682.7,7.50553484]
[1727553716584,1.18108808,2683.1,2682.7,3.77802484]
[1727553716812,1.18108808,2683.1,2682.7,7.50553484]
[1727553718232,1.18108808,2683.1,2682.7,3.77802484]
[1727553718432,1.18108808,2683.1,2682.7,7.50553484]
[1727553718646,1.18108808,2683.1,2682.7,0.05053484]
[1727553718826,0.8289,2682.8,2682.7,0.05053484]
[1727553719030,0.8289,2682.8,2682.4,3.728]
[1727553719245,0.8289,2682.8,2682.7,0.05172133]
[1727553719709,0.8289,2682.8,2682.4,3.728]
[1727553719913,1.8129998,2682.8,2682.5,0.05172133]
[1727553720313,1.8129998,2682.8,2682.4,3.728]
[1727553720623,1.8129998,2682.8,2682.5,0.05172133]
[1727553720805,5.5404698,2682.8,2682.5,0.05172133]
[1727553721005,0.70979978,2682.7,2682.3,3.72812]
[1727553721219,5.5404698,2682.8,2682.6,0.05172133]
[1727553721421,5.5404698,2682.8,2682.3,3.72812]
[1727553721704,5.5404698,2682.8,2682.3,3.72813]
[1727553721926,5.5404698,2682.8,2682.4,0.05172133]
[1727553724097,0.8267,2682.6,2682.4,0.05172133]
[1727553724303,0.8267,2682.6,2682.2,7.45637]
[1727553724497,0.8267,2682.6,2682.5,0.05172133]
[1727553724704,0.8267,2682.6,2682.4,3.728]
[1727553725056,0.8267,2682.6,2682.5,0.05172133]
[1727553725953,0.39002644,2682.6,2682.5,0.05172133]
[1727553726162,0.39002644,2682.6,2682.5,4.53948133]
[1727553736159,0.39002644,2682.6,2682.5,0.05172133]
[1727553736466,0.39002644,2682.6,2682.3,8.21614]
[1727553736764,0.39002644,2682.6,2682.4,0.96183288]
[1727553737143,0.39002644,2682.6,2682.4,4.68982288]
[1727553737339,0.39002644,2682.6,2682.5,0.05222999]
[1727553747746,0.39002644,2682.6,2682.5,3.78008999]
[1727553748082,0.39002644,2682.6,2682.5,4.61833628]
[1727553748583,0.39002644,2682.6,2682.5,0.89047628]
[1727553748877,0.39002644,2682.6,2682.5,5.41823628]
[1727553749181,0.39002644,2682.6,2682.5,4.57998999]
[1727553750983,3.72689,2683.2,2682.8,3.7274]
[1727553751309,4.11687956,2683.2,2682.9,0.05227241]
[1727553751780,0.8278,2683.1,2682.9,0.05227241]
[1727553755691,0.38998956,2683.2,2682.9,0.05227241]
[1727553755889,0.38998956,2683.2,2682.8,3.7274]
[1727553756098,0.38998956,2683.2,2683.0,0.05204348]
[1727553756258,0.38998956,2683.2,2682.8,3.7274]
[1727553756459,0.38998956,2683.2,2683.1,0.05204348]
[1727553756653,0.38998956,2683.2,2682.8,3.7274]
[1727553756894,0.38998956,2683.2,2683.1,0.05204348]
[1727553757058,0.38998956,2683.2,2682.9,3.72729]
[1727553757257,0.38998956,2683.2,2683.1,0.05204348]
[1727553757572,0.38998956,2683.2,2682.8,7.45473]
[1727553757781,0.38998956,2683.2,2683.1,0.05204348]
[1727553757972,0.38998956,2683.2,2682.8,3.72736]
[1727553758173,0.38998956,2683.2,2683.1,0.05204348]
[1727553758377,0.38998956,2683.2,2682.8,4.552851]
[1727553758871,0.38998956,2683.2,2682.9,0.05204348]
[1727553763269,0.38998956,2683.2,2682.9,3.77934348]
[1727553763467,0.38998956,2683.2,2682.9,0.80484348]
[1727553763682,0.38998956,2683.2,2683.0,0.45322035]
[1727553763868,0.38998956,2683.2,2683.0,4.18038035]
[1727553764092,0.38998956,2683.2,2683.1,0.05204348]
[1727553764990,0.38998956,2683.2,2683.0,3.88811757]
[1727553765173,0.38998956,2683.2,2683.0,3.47288885]
[1727553765371,0.38998956,2683.2,2683.0,3.06287643]
[1727553765602,0.38998956,2683.2,2683.1,0.04675716]
[1727553765910,0.38998956,2683.2,2683.1,0.04558458]
[1727553766503,0.38998956,2683.2,2683.0,2.89894755]
[1727553766704,0.38998956,2683.2,2682.9,4.14799266]
[1727553766881,0.38998956,2683.2,2683.0,0.04259626]
[1727553767614,0.38998956,2683.2,2683.0,3.76969626]
[1727553770671,0.38998956,2683.2,2683.0,0.04259626]
[1727553773004,0.38998956,2683.2,2683.0,3.76975626]
[1727553784835,0.38998956,2683.2,2683.0,7.49685626]
[1727553786939,0.38998956,2683.2,2683.1,3.72703]
[1727553787342,0.38998956,2683.2,2683.1,3.76943979]
[1727553788045,0.38998956,2683.2,2683.1,5.36376304]
[1727553788540,0.38998956,2683.2,2683.1,5.91376304]
[1727553788743,7.27,2683.7,2683.2,0.8026]
[1727553788900,0.38996224,2683.7,2683.6,3.72633]
[1727553789107,0.38996224,2683.7,2683.5,3.72642]
[1727553789428,0.38996224,2683.7,2683.6,0.04240979]
[1727553794711,1.14566224,2683.7,2683.4,3.72654]
[1727553795044,1.14566224,2683.7,2683.5,0.04193517]
[1727553795707,1.14566224,2683.7,2683.5,3.76835517]
[1727553796007,1.14566224,2683.7,2683.5,0.04193517]
[1727553798252,1.71236765,2683.7,2683.5,0.04193517]
[1727553798551,1.14566224,2683.7,2683.5,0.04193517]
[1727553808736,0.07403934,2683.6,2683.5,0.04193517]
[1727553808939,0.09260266,2683.6,2683.5,0.04193517]
[1727553809147,0.63647411,2683.6,2683.5,0.04193517]
[1727553811169,1.18729574,2683.6,2683.2,4.52941]
[1727553811348,1.18729574,2683.6,2683.5,0.04151989]
[1727553811549,1.18729574,2683.6,2683.2,4.52941]
[1727553811950,1.18729574,2683.6,2683.5,0.04151989]
[1727553812154,1.18729574,2683.6,2683.2,4.52941]
[1727553812378,1.18729574,2683.6,2683.3,0.04151989]
[1727553812981,1.18729574,2683.6,2683.4,0.04154531]
[1727553813373,0.6059158,2683.5,2683.4,0.04154531]
[1727553813569,0.6059158,2683.5,2683.2,4.52941]
[1727553813741,1.18729574,2683.6,2683.4,0.04154531]
[1727553813943,1.18729574,2683.6,2683.2,4.52941]
[1727553814172,1.18729574,2683.6,2683.3,0.04154531]
[1727553814556,1.18729574,2683.6,2683.2,4.52941]
[1727553814974,1.18729574,2683.6,2683.3,0.04154531]
[1727553815353,1.18729574,2683.6,2683.2,4.52941]
[1727553815553,1.18729574,2683.6,2683.3,0.04154531]
[1727553816089,1.18729574,2683.6,2683.2,4.52941]
[1727553816294,1.18729574,2683.6,2683.4,0.04154531]
[1727553816480,0.6059158,2683.5,2683.2,4.52941]
[1727553816682,1.18729574,2683.6,2683.2,4.52941]
[1727553817486,1.18729574,2683.6,2683.2,3.72681]
[1727553817691,0.7989,2683.5,2683.0,4.48876]
[1727553817894,0.7989,2683.5,2683.1,3.72695]
[1727553818476,0.7989,2683.5,2683.2,3.72688]
[1727553820790,0.7989,2683.5,2683.2,7.45369]
[1727553821088,0.7989,2683.5,2683.3,3.72674]
[1727553821600,0.7989,2683.5,2683.2,7.45362]
[1727553821777,0.7989,2683.5,2683.3,3.72675]
[1727553821979,0.7989,2683.5,2683.3,3.76700836]
[1727553823453,0.7989,2683.5,2683.3,0.04025836]
[1727553823901,0.7989,2683.5,2683.2,3.72681]
[1727553824091,0.7989,2683.5,2683.4,0.0403092]
[1727553824291,0.7989,2683.5,2683.2,3.72681]
[1727553824469,0.7989,2683.5,2683.4,0.0403092]
[1727553824797,1.54948387,2683.5,2683.4,0.0403092]
[1727553824956,1.54948387,2683.5,2683.2,3.72681]
[1727553825164,1.54948387,2683.5,2683.3,0.0403092]
[1727553825165,0.7989,2683.5,2683.3,0.0403092]
[1727553825363,0.7989,2683.5,2683.2,7.45363]
[1727553825561,0.7989,2683.5,2683.3,0.0403092]
[1727553825791,0.7989,2683.5,2683.2,7.45363]
[1727553826102,0.7989,2683.5,2683.4,0.0403092]
[1727553826446,1.54948387,2683.5,2683.4,0.0403092]
[1727553826564,1.54948387,2683.5,2683.2,7.45363]
[1727553826763,0.7989,2683.5,2683.3,0.0403092]
[1727553826964,0.7989,2683.5,2683.2,7.4536]
[1727553827165,0.7989,2683.5,2683.3,3.7670392]
[1727553836231,0.7989,2683.5,2683.3,0.0403092]
[1727553836745,0.7989,2683.5,2683.4,0.0402838]
[1727553836944,0.7989,2683.5,2683.3,3.72675]
[1727553837244,0.7989,2683.5,2683.4,0.0402838]
[1727553838214,2.75472772,2683.5,2683.4,0.0402838]
[1727553838527,0.7989,2683.5,2683.1,3.72694]
[1727553838729,0.7989,2683.5,2683.2,3.7671738]
[1727553839029,2.75472772,2683.5,2683.2,3.7671738]
[1727553839551,0.7989,2683.5,2683.2,3.7671738]
[1727553840047,2.75472772,2683.5,2683.2,3.7671738]
[1727553840226,0.7989,2683.5,2683.2,3.7671738]
[1727553841045,2.75485772,2683.5,2683.2,3.7671738]
[1727553841238,0.7989,2683.5,2683.2,3.7671738]
[1727553841839,2.75485772,2683.5,2683.2,3.7671738]
[1727553842162,2.59243183,2683.6,2683.4,1.55752797]
[1727553842316,0.63647411,2683.6,2683.5,4.54907]
[1727553842710,0.63647411,2683.6,2683.5,4.58939617]
[1727553842914,0.63647411,2683.6,2683.5,5.57674958]
[1727553855169,0.63647411,2683.6,2683.5,6.12674958]
[1727553855583,0.63647411,2683.6,2683.5,9.99546168]
[1727553855736,0.63647411,2683.6,2683.5,12.08242561]
[1727553855935,0.63647411,2683.6,2683.5,12.47483306]
[1727553856171,0.15885773,2683.9,2683.8,3.72606]
[1727553856377,0.15885773,2683.9,2683.8,9.61212762]
[1727553856678,0.15885773,2683.9,2683.8,8.30952681]
[1727553857129,0.15885773,2683.9,2683.8,7.44081471]
[1727553865372,0.15885773,2683.9,2683.8,10.44081471]
[1727553887818,0.15885773,2683.9,2683.8,11.30632358]
[1727553888304,0.15885773,2683.9,2683.8,10.44081471]
[1727553888505,0.15885773,2683.9,2683.8,11.30647044]
[1727553889626,0.15885773,2683.9,2683.8,12.60508964]
[1727553890418,0.15885773,2683.9,2683.8,11.30647044]
[1727553891419,0.15885773,2683.9,2683.8,12.60525574]
[1727553895799,0.15885773,2683.9,2683.8,13.38711812]
[1727553896330,0.15885773,2683.9,2683.8,12.60525574]
[1727553896827,0.15885773,2683.9,2683.8,13.38711812]
[1727553898425,0.15885773,2683.9,2683.8,12.60525574]
[1727553898634,0.15885773,2683.9,2683.8,13.38768134]
[1727553898931,0.15885773,2683.9,2683.8,13.39126359]
[1727553899624,0.15885773,2683.9,2683.8,12.60883799]
[1727553899934,0.15885773,2683.9,2683.8,15.51961169]
[1727553900725,0.15885773,2683.9,2683.8,14.69701169]
[1727553901423,0.15885773,2683.9,2683.8,14.69957647]
[1727553901639,0.15885773,2683.9,2683.8,13.52321548]
[1727553902132,0.15885773,2683.9,2683.8,14.70178394]
[1727553903727,0.15885773,2683.9,2683.8,13.52640156]
[1727553903932,0.15885773,2683.9,2683.8,15.09488288]
[1727553904430,0.15885773,2683.9,2683.8,13.52640156]
[1727553904592,0.15885773,2683.9,2683.8,14.70180994]
[1727553904794,0.15885773,2683.9,2683.8,13.52640156]
[1727553905102,0.15885773,2683.9,2683.8,15.86728288]
[1727553906898,0.15885773,2683.9,2683.8,15.8672462]
[1727553907929,0.15885773,2683.9,2683.8,14.30971823]
[1727553908227,0.15885773,2683.9,2683.8,14.70175795]
[1727553908602,0.15885773,2683.9,2683.8,14.70175045]
[1727553908802,0.15885773,2683.9,2683.8,14.70176446]
[1727553911622,0.15885773,2683.9,2683.8,14.70177068]
[1727553911939,0.15885773,2683.9,2683.8,13.5263711]
[1727553912101,0.15885773,2683.9,2683.8,14.70171972]
[1727553912293,0.15885773,2683.9,2683.8,13.5263711]
[1727553912820,0.15885773,2683.9,2683.8,14.70172191]
[1727553914038,0.15885773,2683.9,2683.8,13.5263711]
[1727553914232,0.15885773,2683.9,2683.8,14.70170853]
[1727553914626,0.15885773,2683.9,2683.8,8.84894934]
[1727553914809,0.95265773,2683.9,2683.8,5.93664164]
[1727553916580,0.95265773,2683.9,2683.8,5.93602919]
[1727553918212,0.95265773,2683.9,2683.8,3.76546274]
[1727553919253,0.95265773,2683.9,2683.8,4.6335133]
[1727553919455,0.95265773,2683.9,2683.8,3.76546274]
[1727553922358,0.95265773,2683.9,2683.8,5.32299071]
[1727553925366,0.95265773,2683.9,2683.8,3.76546274]
[1727553931879,0.95265773,2683.9,2683.8,3.82763065]
[1727553940271,0.95265773,2683.9,2683.8,0.10157065]
[1727553940672,0.95265773,2683.9,2683.7,3.72611]
[1727553940871,0.95265773,2683.9,2683.8,0.10161299]
[1727553941183,0.95265773,2683.9,2683.6,3.7262]
[1727553941487,0.95265773,2683.9,2683.8,3.72606]
[1727553941647,0.95265773,2683.9,2683.8,3.82767299]
[1727553942686,0.15885773,2683.9,2683.8,6.92488826]
[1727553942886,0.15885773,2683.9,2683.8,6.99939545]
[1727553943183,0.15885773,2683.9,2683.8,7.47488826]
[1727553943561,0.15885773,2683.9,2683.8,8.41626047]
[1727553943871,0.15885773,2683.9,2683.8,9.64205301]
[1727553944041,0.15885773,2683.9,2683.8,8.34175665]
[1727553944246,0.15885773,2683.9,2683.8,13.42445525]
[1727553944648,0.15885773,2683.9,2683.8,13.42420714]
[1727553944958,0.15885773,2683.9,2683.8,12.64208838]
[1727553945174,0.15885773,2683.9,2683.8,13.81563869]
[1727553945972,0.15885773,2683.9,2683.8,12.64208838]
[1727553946158,0.15885773,2683.9,2683.8,13.42412447]
[1727553946684,0.15885773,2683.9,2683.8,12.64208838]
[1727553947059,0.15885773,2683.9,2683.8,13.42413076]
[1727553947392,0.15885773,2683.9,2683.8,12.64208838]
[1727553948349,0.15885773,2683.9,2683.8,12.64160244]
[1727553949950,0.15885773,2683.9,2683.8,13.42350668]
[1727553950599,0.15885773,2683.9,2683.8,12.64160244]
[1727553950777,0.15885773,2683.9,2683.8,13.42349087]
[1727553951386,0.15885773,2683.9,2683.8,12.64160244]
[1727553951588,0.15885773,2683.9,2683.8,13.42345048]
[1727553951788,0.15885773,2683.9,2683.8,12.64160244]
[1727553952179,0.15885773,2683.9,2683.8,13.42343348]
[1727553952568,0.15885773,2683.9,2683.8,12.64160244]
[1727553953266,0.15885773,2683.9,2683.8,13.42303122]
[1727553958105,0.15885773,2683.9,2683.8,11.25668682]
[1727553958299,0.15885773,2683.9,2683.8,13.42259817]
[1727553962900,0.38999281,2684.7,2684.6,3.72494]
[1727553963114,0.38999281,2684.7,2684.6,3.82656148]
[1727553963610,0.8163,2685.3,2684.6,0.10162148]
[1727553963809,0.8163,2685.3,2685.0,3.72438]
[1727553964138,0.38993031,2685.2,2685.1,0.1011812]
[1727553964326,0.38993031,2685.2,2685.1,5.38295917]
[1727553964480,0.8163,2685.3,2685.2,3.72411]
[1727553964826,0.8163,2685.3,2685.2,3.82515576]
[1727553965705,0.8163,2685.3,2685.2,0.10104576]
[1727553967707,0.8163,2685.3,2685.2,3.82515576]
[1727553969040,0.8163,2685.3,2685.2,0.10104576]
[1727553969245,0.8163,2685.3,2685.2,0.63932013]
[1727553969843,0.8163,2685.6,2685.2,4.36343013]
[1727553970147,0.8163,2685.6,2685.2,0.63932013]
[1727553970645,0.8163,2685.6,2685.4,3.7238]
[1727553970846,0.8163,2685.6,2685.4,4.68825881]
[1727553971149,0.8163,2685.6,2685.5,0.10067338]
[1727553973545,0.8163,2685.6,2685.5,0.09984399]
[1727553973906,0.8163,2685.6,2685.3,3.72394]
[1727553974108,0.8163,2685.6,2685.4,0.09984399]
[1727553978210,0.8163,2685.6,2685.4,0.90843683]
[1727553983653,0.8163,2685.6,2685.4,0.09984399]
[1727553983952,4.53991,2685.6,2685.1,3.72422]
[1727553984138,4.53991,2685.6,2685.5,0.09971708]
[1727553984458,0.8163,2685.6,2685.1,5.28174797]
[1727553984619,0.8163,2685.6,2685.5,0.09971708]
[1727553984816,0.8163,2685.6,2685.2,3.79854405]
[1727553985020,0.8163,2685.6,2685.5,0.09971708]
[1727553985234,0.8163,2685.6,2685.3,0.39761039]
[1727553985716,0.8163,2685.6,2685.4,0.09971708]
[1727553987984,0.8163,2685.6,2685.2,3.72407]
[1727553988266,4.53987,2685.6,2685.5,0.09967478]
[1727553988464,4.53987,2685.6,2685.2,3.72407]
[1727553988972,4.53987,2685.6,2685.3,0.09967478]
[1727553989287,0.8163,2685.6,2685.3,0.09967478]
[1727553992936,0.8163,2685.6,2685.3,3.82363478]
[1727553996657,0.8163,2685.6,2685.3,0.09967478]
[1727553999147,0.8163,2685.6,2685.3,3.82363478]
[1727554002891,0.38989496,2685.7,2685.3,2.82092117]
[1727554003077,0.38989496,2685.7,2685.5,3.72361]
[1727554003252,0.38989496,2685.7,2685.5,7.44723]
[1727554003456,0.38989496,2685.7,2685.6,0.09953098]
[1727554011367,0.38989496,2685.7,2685.6,3.82309098]
[1727554011763,0.38989496,2685.7,2685.6,0.09953098]
[1727554011971,0.38989496,2685.7,2685.6,3.82309098]
[1727554020435,8.41778392,2685.7,2685.6,0.09953098]
[1727554020586,7.91048824,2685.7,2685.6,0.09953098]
[1727554020783,3.72384,2685.4,2684.9,3.72449]
[1727554021079,0.7908,2685.3,2684.9,3.72449]
[1727554021308,0.7908,2685.3,2685.0,0.0958826]
[1727554021493,1.18068813,2685.3,2685.0,0.0958826]
[1727554021924,1.18068813,2685.3,2685.0,3.72431]
[1727554022301,1.18068813,2685.3,2685.1,0.0958826]
[1727554035550,1.18068813,2685.3,2684.9,3.72451]
[1727554035771,1.18068813,2685.3,2685.0,3.8204433]
[1727554037272,1.18068813,2685.3,2685.0,0.0961533]
[1727554038465,1.18068813,2685.3,2685.0,3.8205233]
[1727554038785,1.18068813,2685.3,2685.0,0.0961533]
[1727554039250,1.18068813,2685.3,2685.0,3.8205433]
[1727554039778,1.18068813,2685.3,2685.0,0.0961533]
[1727554044361,1.18068813,2685.3,2684.8,5.88714477]
[1727554044514,4.90466813,2685.3,2685.1,0.0961533]
[1727554044674,4.90466813,2685.3,2684.8,5.28209797]
[1727554044875,4.90466813,2685.3,2685.2,0.0961533]
[1727554045381,4.90466813,2685.3,2684.8,5.28209797]
[1727554045585,4.90466813,2685.3,2684.9,0.0961533]
[1727554046810,3.72412,2685.2,2684.9,0.0961533]
[1727554047305,0.7939,2685.1,2684.9,0.0961533]
[1727554047481,4.51815,2685.1,2684.9,0.0961533]
[1727554047678,0.7939,2685.1,2684.9,0.0961533]
[1727554047879,3.72466,2684.9,2684.4,3.79000606]
[1727554048093,0.7939,2684.8,2684.4,0.9833564]
[1727554048300,4.51864,2684.8,2684.3,4.48588]
[1727554048879,8.24344,2684.8,2684.3,0.7606]
[1727554049085,8.2434,2684.8,2684.3,1.3649558]
[1727554049286,4.51864,2684.8,2684.3,1.3649558]
[1727554049814,4.51864,2684.8,2684.3,5.0902158]
[1727554052128,8.24342,2684.8,2684.3,1.3649558]
[1727554052683,8.2434,2684.8,2684.3,1.3649558]
[1727554053027,3.72482,2684.7,2684.3,1.3649558]
[1727554054112,3.72482,2684.7,2684.3,0.6043558]
[1727554062105,3.72482,2684.7,2684.4,0.09603841]
[1727554066855,3.72482,2684.7,2684.5,0.0961569]
[1727554067223,3.72482,2684.7,2684.2,5.28293797]
[1727554067553,3.72482,2684.7,2684.2,6.25985977]
[1727554067751,3.72482,2684.7,2684.3,0.09295167]
[1727554067967,3.72501,2684.6,2684.2,2.53444977]
[1727554068252,3.72501,2684.6,2684.3,0.09295167]
[1727554068654,3.72501,2684.6,2684.2,2.53444977]
[1727554069468,3.72501,2684.6,2684.3,0.09295167]
[1727554069960,3.72501,2684.6,2684.4,0.09305324]
[1727554070252,3.72501,2684.6,2684.2,2.53444977]
[1727554070458,3.72501,2684.6,2684.5,0.09305324]
[1727554070661,3.72501,2684.6,2684.2,1.55752797]
[1727554070867,3.72501,2684.6,2684.5,0.09305324]
[1727554071032,3.72501,2684.6,2684.2,1.55752797]
[1727554071232,3.72501,2684.6,2684.5,0.09305324]
[1727554071474,3.72501,2684.6,2684.2,1.55752797]
[1727554071658,3.72501,2684.6,2684.5,0.09305324]
[1727554071830,3.72482,2684.7,2684.2,1.55752797]
[1727554072169,3.72494,2684.6,2684.2,2.53447177]
[1727554072326,3.72494,2684.6,2684.3,0.09305324]
[1727554072532,3.72494,2684.6,2684.2,2.53447177]
[1727554072928,3.72494,2684.6,2684.3,0.09305324]
[1727554073368,3.72494,2684.6,2684.4,0.09311249]
[1727554073671,3.72494,2684.6,2684.2,2.53447177]
[1727554073830,3.72494,2684.6,2684.5,0.09311249]
[1727554074032,3.72494,2684.6,2684.2,1.55752797]
[1727554074228,3.72494,2684.6,2684.5,0.09311249]
[1727554074435,3.72494,2684.6,2684.2,6.25995177]
[1727554074963,3.72494,2684.6,2684.3,0.09311249]
[1727554075126,3.72494,2684.6,2684.2,6.25995177]
[1727554075331,3.72494,2684.6,2684.3,0.79516767]
[1727554077779,4.51858,2684.8,2684.3,0.79516767]
[1727554078077,3.72491,2684.7,2684.3,0.79516767]
[1727554078291,3.72497,2684.6,2684.3,0.79516767]
[1727554078492,3.72497,2684.6,2684.3,0.09311249]
[1727554078797,3.72497,2684.6,2684.2,5.28300797]
[1727554078951,3.72497,2684.6,2684.3,0.09311249]
[1727554079289,3.72497,2684.6,2684.2,5.28300797]
[1727554079507,3.72497,2684.6,2684.4,0.09311249]
[1727554079791,3.72497,2684.6,2684.5,0.09311249]
[1727554080093,3.72497,2684.6,2684.2,6.25993877]
[1727554080291,3.72497,2684.6,2684.5,0.09311249]
[1727554080471,3.72497,2684.6,2684.2,5.28300797]
[1727554080651,3.72497,2684.6,2684.5,0.09311249]
[1727554080852,3.72497,2684.6,2684.2,5.28300797]
[1727554081056,3.72497,2684.6,2684.5,0.09311249]
[1727554081567,3.72497,2684.6,2684.2,5.28300797]
[1727554081769,3.72497,2684.6,2684.3,0.09311249]
[1727554081972,3.72497,2684.6,2684.2,5.28300797]
[1727554082175,3.72497,2684.6,2684.3,0.09311249]
[1727554082375,3.72497,2684.6,2684.2,6.25993877]
[1727554082573,3.72497,2684.6,2684.3,0.09321405]
[1727554082776,3.72497,2684.6,2684.2,6.25993877]
[1727554082979,3.72497,2684.6,2684.3,0.09321405]
[1727554083183,3.72497,2684.6,2684.2,2.53445877]
[1727554083493,0.7897,2684.5,2684.3,0.09321405]
[1727554083990,0.7897,2684.5,2684.4,0.09319712]
[1727554084159,0.7897,2684.5,2684.2,1.55752797]
[1727554084362,0.7897,2684.5,2684.3,0.09322251]
[1727554084595,0.7897,2684.5,2684.2,1.55752797]
[1727554084808,4.51485,2684.5,2684.3,0.09322251]
[1727554085095,4.51485,2684.5,2684.2,1.55752797]
[1727554085297,0.7897,2684.5,2684.4,0.09322251]
[1727554085456,0.7897,2684.5,2684.2,1.55752797]
[1727554085658,0.7897,2684.5,2684.4,0.09322251]
[1727554085859,0.7897,2684.5,2684.2,1.55752797]
[1727554086094,0.7897,2684.5,2684.4,0.09322251]
[1727554086271,0.7897,2684.5,2684.2,1.55752797]
[1727554086468,0.7897,2684.5,2684.4,0.09322251]
[1727554086668,0.7897,2684.5,2684.2,1.55752797]
[1727554086869,4.90452002,2684.7,2684.4,0.09322251]
[1727554087070,4.90452002,2684.7,2684.2,5.96189551]
[1727554087277,4.90452002,2684.7,2684.5,0.09328177]
[1727554087572,4.90452002,2684.7,2684.6,0.09323944]
[1727554087773,4.90452002,2684.7,2684.2,9.68725551]
[1727554087977,4.90452002,2684.7,2684.3,0.09323944]
[1727554088298,3.72498,2684.6,2684.2,5.88732277]
[1727554088482,4.90452002,2684.7,2684.4,0.09323944]
[1727554088683,4.90452002,2684.7,2684.2,5.88732277]
[1727554088889,4.90452002,2684.7,2684.5,0.09323944]
[1727554089194,4.90452002,2684.7,2684.6,0.09323944]
[1727554089494,3.725,2684.6,2684.2,2.16190277]
[1727554090395,4.90452002,2684.7,2684.2,2.16190277]
[1727554090559,3.72498,2684.6,2684.2,5.88738277]
[1727554090756,3.72498,2684.6,2684.2,2.16190277]
[1727554092095,3.72498,2684.6,2684.3,0.09323944]
[1727554092399,3.72498,2684.6,2684.2,2.23640289]
[1727554092696,8.62942002,2684.7,2684.3,0.76550273]
[1727554093064,3.72499,2684.6,2684.3,0.76550273]
[1727554093562,6.86075058,2684.7,2684.3,0.76550273]